fUST/lending_fUST_20240518
["ID","MTS","AMOUNT","RATE_DAILY","PERIOD"]
[327388204,1716039038555,-155.84275179,6.998e-05,2]
[327388205,1716039038564,-281.91116502,6.998e-05,2]
[327388206,1716039038573,-188.09848396,6.998e-05,2]
[327388207,1716039038583,-248.91957895,7.077e-05,2]
[327388208,1716039038592,-302.95134984,7.077e-05,2]
[327388209,1716039038602,-193.01986418,7.079e-05,2]
[327388210,1716039038611,-295.34694888,7.079e-05,2]
[327388211,1716039038621,-156.34366179,7.079e-05,2]
[327388212,1716039038631,-209.93411164,7.08e-05,2]
[327388213,1716039038640,-160.98317722,7.08e-05,2]
[327388214,1716039038649,-155.75234196,7.081e-05,2]
[327388215,1716039038658,-7142.88182395,7.397e-05,2]
[327388216,1716039038670,-17757.11817605,7.397e-05,2]
[327388217,1716039038680,-1531.09364086,8.92e-05,2]
[327388218,1716039038690,-250.36109787,9e-05,2]
[327388219,1716039038699,-154.81422293,0.0001,2]
[327388220,1716039038707,-771.85111591,0.0001,2]
[327388221,1716039038717,-1450.46017766,0.0001,2]
[327388222,1716039038726,-9398.82663272,0.0001,2]
[327388223,1716039038735,-1136.28761432,0.0001,2]
[327388224,1716039038744,-277.75241642,0.0001,2]
[327388225,1716039038753,-6416.54995712,0.0001,2]
[327388226,1716039038762,-306.99,0.00010959,2]
[327388227,1716039038772,-2723.07,0.00010959,2]
[327388228,1716039038781,-2367.88,0.00010959,2]
[327388229,1716039038790,-1973.23,0.00010959,2]
[327388230,1716039038799,-1644.36,0.00010959,2]
[327388231,1716039038808,-1370.3,0.00010959,2]
[327388232,1716039038816,-1141.92,0.00010959,2]
[327388233,1716039038826,-1531.09364086,0.00011326,2]
[327388234,1716039038835,-4154.41602517,0.000129,2]
[327388235,1716039038846,-2828.368627,0.00013699,2]
[327388236,1716039038856,-3000.0,0.00013699,2]
[327388237,1716039038865,-778.2875298,0.00013699,2]
[327388238,1716039038874,-1008.0412453,0.00013699,2]
[327388239,1716039038883,-283.58690319,0.000137,2]
[327388240,1716039038893,-387.20969682,0.000138,2]
[327388241,1716039038906,-697.30126901,0.000138,2]
[327388242,1716039038916,-1531.09364086,0.00013832,2]
[327388243,1716039038925,-920.93404353,0.00014,2]
[327388244,1716039038934,-413.25192883,0.00014,2]
[327388245,1716039038945,-2400.65057528,0.00015,2]
[327388246,1716039038954,-2107.5414282,0.00015,2]
[327388247,1716039038963,-1682.27955662,0.00015,2]
[327388248,1716039038972,-942.53705457,0.00015,2]
[327388249,1716039038981,-80000.0,0.00015,2]
[327388250,1716039038991,-3699.56949019,0.00015,2]
[327388251,1716039039000,-1149.07076386,0.00015,2]
[327388252,1716039039009,-491.35425183,0.00015,2]
[327388253,1716039039019,-4154.41602514,0.00015409,2]
[327388254,1716039039028,-4222.10020806,0.00015727,2]
[327388255,1716039039037,-150.31301354,0.00015804,2]
[327388256,1716039039047,-417.06273246,0.00015814,2]
[327388257,1716039039056,-4579.8151335,0.00015998,2]
[327388258,1716039039066,-7967.64444353,0.00016,2]
[327388259,1716039039075,-3095.46719057,0.00016,2]
[327388260,1716039039085,-151.0,0.00016338,2]
[327388261,1716039039093,-151.0,0.00016338,2]
[327388262,1716039039103,-151.0,0.00016338,2]
[327388263,1716039039113,-151.0,0.00016338,2]
[327388264,1716039039124,-151.0,0.00016338,2]
[327388265,1716039039134,-151.0,0.00016338,2]
[327388266,1716039039143,-169.125829,0.00016338,2]
[327388267,1716039039152,-169.125829,0.00016338,2]
[327388268,1716039039162,-1531.09364086,0.00016338,2]
[327388269,1716039039173,-297.88644612,0.00016415,2]
[327388270,1716039039183,-227.51769389,0.00016416,2]
[327388271,1716039039194,-155.04570122,0.00016418,2]
[327388272,1716039039203,-154.91070564,0.00016434,2]
[327388273,1716039039212,-162.85279701,0.00016435,2]
[327388274,1716039039222,-163.80018198,0.00016435,2]
[327388275,1716039039231,-189.0391359,0.00016436,2]
[327388276,1716039039241,-200.0,0.00016436,2]
[327388277,1716039039250,-157.04901496,0.00016436,2]
[327388278,1716039039261,-160.0,0.00016437,2]
[327388279,1716039039272,-56612.15888892,0.00016438,3]
[327388280,1716039039282,-1101.24786691,0.00016438,2]
[327388281,1716039039293,-285.71224732,0.00016438,2]
[327388282,1716039039303,-666.89459558,0.00016438,2]
[327388283,1716039039312,-1256.85686195,0.00016438,2]
[327388284,1716039039322,-154.78330338,0.00016438,2]
[327388285,1716039039332,-502.29366968,0.00016438,2]
[327388286,1716039039346,-503.67782548,0.00016438,2]
[327388287,1716039039356,-500.0,0.00016438,2]
[327388288,1716039039366,-500.0,0.00016438,2]
[327388289,1716039039376,-500.0,0.00016438,2]
[327388290,1716039039386,-500.0,0.00016438,2]
[327388291,1716039039396,-500.0,0.00016438,2]
[327388292,1716039039407,-500.0,0.00016438,2]
[327388293,1716039039417,-500.0,0.00016438,2]
[327388294,1716039039431,-500.0,0.00016438,2]
[327388295,1716039039442,-500.0,0.00016438,2]
[327388296,1716039039452,-500.0,0.00016438,2]
[327388297,1716039039463,-500.0,0.00016438,2]
[327388298,1716039039474,-500.0,0.00016438,2]
[327388299,1716039039485,-500.0,0.00016438,2]
[327388300,1716039039496,-442.3,0.00016438,2]
[327388301,1716039039507,-500.0,0.00016438,2]
[327388302,1716039039517,-320.7142766,0.00016438,2]
[327388303,1716039039528,-501.32833032,0.00016438,2]
[327388304,1716039039539,-500.0,0.00016438,2]
[327388305,1716039039549,-151.0,0.00016438,2]
[327388306,1716039039560,-151.0,0.00016438,2]
[327388307,1716039039570,-372.52263561,0.00016438,2]
[327388308,1716039039581,-500.0,0.00016438,2]
[327388309,1716039039591,-500.0,0.00016438,2]
[327388310,1716039039601,-500.0,0.00016438,2]
[327388311,1716039039611,-501.95000294,0.00016438,2]
[327388312,1716039039621,-500.0,0.00016438,2]
[327388313,1716039039631,-200.0,0.00016438,2]
[327388314,1716039039641,-200.0,0.00016438,2]
[327388315,1716039039655,-200.0,0.00016438,2]
[327388316,1716039039665,-500.0,0.00016438,2]
[327388317,1716039039676,-200.0,0.00016438,2]
[327388318,1716039039686,-200.0,0.00016438,2]
[327388319,1716039039698,-200.0,0.00016438,2]
[327388320,1716039039709,-425.95119997,0.00016438,2]
[327388322,1716039039720,-500.0,0.00016438,2]
[327388323,1716039039730,-473.98967014,0.00016438,2]
[327388324,1716039039740,-502.30809218,0.00016438,2]
[327388325,1716039039751,-585.23717394,0.00016438,2]
[327388326,1716039039761,-500.0,0.00016438,2]
[327388327,1716039039771,-500.0,0.00016438,2]
[327388328,1716039039784,-500.0,0.00016438,2]
[327388329,1716039039794,-500.0,0.00016438,2]
[327388330,1716039039804,-179.30623564,0.00016438,2]
[327388331,1716039039814,-500.0,0.00016438,2]
[327388332,1716039039824,-421.28285617,0.00016438,2]
[327388333,1716039039835,-512.76663329,0.00016438,2]
[327388334,1716039039845,-500.0,0.00016438,2]
[327388335,1716039039855,-500.0,0.00016438,2]
[327388336,1716039039865,-500.0,0.00016438,2]
[327388337,1716039039876,-583.55215283,0.00016438,2]
[327388338,1716039039886,-500.0,0.00016438,2]
[327388339,1716039039896,-500.0,0.00016438,2]
[327388340,1716039039907,-500.0,0.00016438,2]
[327388341,1716039039917,-500.0,0.00016438,2]
[327388342,1716039039927,-500.0,0.00016438,2]
[327388343,1716039039937,-500.0,0.00016438,2]
[327388344,1716039039949,-500.0,0.00016438,2]
[327388345,1716039039960,-500.0,0.00016438,2]
[327388346,1716039039970,-501.53211938,0.00016438,2]
[327388347,1716039039981,-500.0,0.00016438,2]
[327388348,1716039039991,-500.0,0.00016438,2]
[327388349,1716039040000,-164.66272241,0.00016438,2]
[327388350,1716039040011,-500.0,0.00016438,2]
[327388351,1716039040020,-500.0,0.00016438,2]
[327388353,1716039040031,-500.0,0.00016438,2]
[327388355,1716039040041,-500.0,0.00016438,2]
[327388356,1716039040051,-500.0,0.00016438,2]
[327388357,1716039040062,-500.0,0.00016438,2]
[327388358,1716039040073,-500.0,0.00016438,2]
[327388359,1716039040083,-500.0,0.00016438,2]
[327388360,1716039040094,-500.0,0.00016438,2]
[327388361,1716039040104,-500.0,0.00016438,2]
[327388362,1716039040115,-500.0,0.00016438,2]
[327388363,1716039040125,-500.0,0.00016438,2]
[327388364,1716039040135,-151.0,0.00016438,2]
[327388365,1716039040145,-151.0,0.00016438,2]
[327388367,1716039040242,-500.0,0.00016438,2]
[327388368,1716039040254,-270.53406,0.00016438,2]
[327388369,1716039040264,-500.0,0.00016438,2]
[327388370,1716039040274,-500.0,0.00016438,2]
[327388371,1716039040284,-500.0,0.00016438,2]
[327388372,1716039040294,-500.0,0.00016438,2]
[327388373,1716039040304,-376.1029477,0.00016438,2]
[327388374,1716039040314,-504.4005036,0.00016438,2]
[327388375,1716039040324,-583.29295271,0.00016438,2]
[327388376,1716039040334,-500.0,0.00016438,2]
[327388377,1716039040346,-500.0,0.00016438,2]
[327388378,1716039040360,-500.0,0.00016438,2]
[327388379,1716039040371,-500.0,0.00016438,2]
[327388380,1716039040381,-500.0,0.00016438,2]
[327388381,1716039040391,-500.0,0.00016438,2]
[327388382,1716039040401,-500.0,0.00016438,2]
[327388383,1716039040411,-500.0,0.00016438,2]
[327388384,1716039040422,-395.26572016,0.00016438,2]
[327388385,1716039040434,-435.8434992,0.00016438,2]
[327388386,1716039040446,-500.0,0.00016438,2]
[327388387,1716039040457,-500.0,0.00016438,2]
[327388388,1716039040467,-500.0,0.00016438,2]
[327388389,1716039040478,-500.0,0.00016438,2]
[327388390,1716039040489,-500.0,0.00016438,2]
[327388391,1716039040500,-500.0,0.00016438,2]
[327388392,1716039040510,-500.0,0.00016438,2]
[327388393,1716039040521,-500.0,0.00016438,2]
[327388394,1716039040532,-500.0,0.00016438,2]
[327388395,1716039040542,-500.0,0.00016438,2]
[327388396,1716039040552,-500.34391902,0.00016438,2]
[327388397,1716039040563,-500.0,0.00016438,2]
[327388398,1716039040574,-500.0,0.00016438,2]
[327388399,1716039040586,-500.0,0.00016438,2]
[327388400,1716039040596,-500.0,0.00016438,2]
[327388401,1716039040607,-500.0,0.00016438,2]
[327388402,1716039040618,-500.0,0.00016438,2]
[327388403,1716039040630,-500.0,0.00016438,2]
[327388404,1716039040640,-500.0,0.00016438,2]
[327388405,1716039040651,-500.0,0.00016438,2]
[327388406,1716039040661,-500.0,0.00016438,2]
[327388407,1716039040672,-500.0,0.00016438,2]
[327388408,1716039040683,-500.0,0.00016438,2]
[327388409,1716039040692,-500.0,0.00016438,2]
[327388410,1716039040702,-500.0,0.00016438,2]
[327388411,1716039040712,-500.0,0.00016438,2]
[327388412,1716039040722,-500.0,0.00016438,2]
[327388413,1716039040732,-500.0,0.00016438,2]
[327388414,1716039040741,-653.81,0.00016438,2]
[327388415,1716039040752,-152.06196,0.00016438,2]
[327388416,1716039040762,-539.08949303,0.00016438,2]
[327388417,1716039040771,-500.0,0.00016438,2]
[327388418,1716039040781,-500.0,0.00016438,2]
[327388419,1716039040791,-500.0,0.00016438,2]
[327388420,1716039040800,-500.0,0.00016438,2]
[327388421,1716039040809,-151.0,0.00016438,2]
[327388422,1716039040818,-1016.59,0.00016438,2]
[327388423,1716039040827,-500.0,0.00016438,2]
[327388424,1716039040837,-500.0,0.00016438,2]
[327388425,1716039040847,-500.0,0.00016438,2]
[327388426,1716039040856,-610.627207,0.00016438,2]
[327388427,1716039040865,-500.0,0.00016438,2]
[327388428,1716039040875,-500.0,0.00016438,2]
[327388429,1716039040884,-500.0,0.00016438,2]
[327388430,1716039040893,-151.0,0.00016438,2]
[327388431,1716039040902,-199.341115,0.00016438,2]
[327388432,1716039040911,-334.53947105,0.00016438,2]
[327388433,1716039040920,-620.30553072,0.00016438,2]
[327388434,1716039040929,-500.0,0.00016438,2]
[327388435,1716039040938,-278.71634198,0.00016438,2]
[327388436,1716039040949,-500.0,0.00016438,2]
[327388437,1716039040958,-500.0,0.00016438,2]
[327388438,1716039040968,-502.04358382,0.00016438,2]
[327388439,1716039040977,-500.0,0.00016438,2]
[327388440,1716039040986,-500.0,0.00016438,2]
[327388441,1716039040995,-500.0,0.00016438,2]
[327388442,1716039041005,-500.0,0.00016438,2]
[327388443,1716039041014,-500.0,0.00016438,2]
[327388444,1716039041024,-500.0,0.00016438,2]
[327388445,1716039041033,-500.0,0.00016438,2]
[327388446,1716039041042,-500.0,0.00016438,2]
[327388447,1716039041051,-207.92923711,0.00016438,2]
[327388448,1716039041060,-500.0,0.00016438,2]
[327388449,1716039041071,-500.0,0.00016438,2]
[327388450,1716039041080,-472.27228912,0.00016438,2]
[327388451,1716039041089,-500.0,0.00016438,2]
[327388452,1716039041098,-500.0,0.00016438,2]
[327388453,1716039041107,-500.0,0.00016438,2]
[327388454,1716039041116,-500.0,0.00016438,2]
[327388455,1716039041125,-509.20786783,0.00016438,2]
[327388456,1716039041134,-500.0,0.00016438,2]
[327388457,1716039041144,-500.0,0.00016438,2]
[327388458,1716039041154,-501.58516664,0.00016438,2]
[327388459,1716039041163,-500.0,0.00016438,2]
[327388460,1716039041174,-500.0,0.00016438,2]
[327388461,1716039041183,-500.0,0.00016438,2]
[327388462,1716039041193,-500.0,0.00016438,2]
[327388463,1716039041202,-500.0,0.00016438,2]
[327388464,1716039041211,-501.30610556,0.00016438,2]
[327388465,1716039041221,-500.0,0.00016438,2]
[327388466,1716039041230,-500.0,0.00016438,2]
[327388467,1716039041239,-500.0,0.00016438,2]
[327388468,1716039041249,-506.53725978,0.00016438,2]
[327388469,1716039041258,-500.0,0.00016438,2]
[327388470,1716039041267,-500.0,0.00016438,2]
[327388471,1716039041276,-500.0,0.00016438,2]
[327388472,1716039041286,-500.0,0.00016438,2]
[327388473,1716039041296,-500.0,0.00016438,2]
[327388474,1716039041305,-500.0,0.00016438,2]
[327388475,1716039041315,-500.0,0.00016438,2]
[327388476,1716039041325,-500.0,0.00016438,2]
[327388477,1716039041335,-500.0,0.00016438,2]
[327388478,1716039041344,-500.0,0.00016438,2]
[327388479,1716039041354,-500.0,0.00016438,2]
[327388480,1716039041367,-500.0,0.00016438,2]
[327388481,1716039041377,-500.0,0.00016438,2]
[327388482,1716039041386,-500.0,0.00016438,2]
[327388483,1716039041396,-500.0,0.00016438,2]
[327388484,1716039041407,-500.0,0.00016438,2]
[327388485,1716039041416,-500.0,0.00016438,2]
[327388486,1716039041426,-511.66165681,0.00016438,2]
[327388487,1716039041435,-151.0,0.00016438,2]
[327388488,1716039041447,-151.0,0.00016438,2]
[327388489,1716039041457,-151.0,0.00016438,2]
[327388490,1716039041467,-151.0,0.00016438,2]
[327388491,1716039041476,-151.0,0.00016438,2]
[327388492,1716039041486,-151.0,0.00016438,2]
[327388493,1716039041496,-151.0,0.00016438,2]
[327388494,1716039041505,-213.78737,0.00016438,2]
[327388495,1716039041515,-505.32129541,0.00016438,2]
[327388496,1716039041525,-500.0,0.00016438,2]
[327388497,1716039041536,-471.63683257,0.00016438,2]
[327388498,1716039041545,-500.0,0.00016438,2]
[327388499,1716039041555,-500.0,0.00016438,2]
[327388500,1716039041566,-500.0,0.00016438,2]
[327388501,1716039041575,-567.43749858,0.00016438,2]
[327388502,1716039041586,-500.0,0.00016438,2]
[327388503,1716039041596,-500.0,0.00016438,2]
[327388504,1716039041605,-500.0,0.00016438,2]
[327388505,1716039041615,-505.28045738,0.00016438,2]
[327388506,1716039041625,-500.0,0.00016438,2]
[327388507,1716039041634,-151.0,0.00016438,2]
[327388508,1716039041644,-500.0,0.00016438,2]
[327388509,1716039041654,-151.0,0.00016438,2]
[327388510,1716039041663,-151.0,0.00016438,2]
[327388511,1716039041672,-151.0,0.00016438,2]
[327388512,1716039041682,-500.0,0.00016438,2]
[327388513,1716039041693,-502.12599737,0.00016438,2]
[327388514,1716039041702,-500.0,0.00016438,2]
[327388515,1716039041711,-500.0,0.00016438,2]
[327388516,1716039041721,-500.0,0.00016438,2]
[327388517,1716039041731,-500.0,0.00016438,2]
[327388518,1716039041740,-500.0,0.00016438,2]
[327388519,1716039041750,-500.0,0.00016438,2]
[327388520,1716039041759,-500.0,0.00016438,2]
[327388521,1716039041768,-500.0,0.00016438,2]
[327388522,1716039041778,-500.0,0.00016438,2]
[327388523,1716039041788,-500.0,0.00016438,2]
[327388524,1716039041797,-500.0,0.00016438,2]
[327388525,1716039041806,-500.0,0.00016438,2]
[327388526,1716039041816,-500.0,0.00016438,2]
[327388527,1716039041825,-500.0,0.00016438,2]
[327388528,1716039041835,-399.094429,0.00016438,2]
[327388529,1716039041844,-399.094429,0.00016438,2]
[327388530,1716039041854,-399.094429,0.00016438,2]
[327388531,1716039041863,-399.094429,0.00016438,2]
[327388532,1716039041873,-500.0,0.00016438,2]
[327388533,1716039041882,-500.0,0.00016438,2]
[327388534,1716039041892,-1341.83,0.00016438,2]
[327388535,1716039041902,-399.094429,0.00016438,2]
[327388536,1716039041911,-500.0,0.00016438,2]
[327388537,1716039041922,-500.0,0.00016438,2]
[327388538,1716039041931,-399.094429,0.00016438,2]
[327388539,1716039041941,-500.0,0.00016438,2]
[327388540,1716039041951,-399.094429,0.00016438,2]
[327388541,1716039041961,-500.0,0.00016438,2]
[327388542,1716039041970,-399.094429,0.00016438,2]
[327388543,1716039041980,-169.125829,0.00016438,2]
[327388544,1716039041989,-500.0,0.00016438,2]
[327388545,1716039041999,-169.125829,0.00016438,2]
[327388546,1716039042008,-151.0,0.00016438,2]
[327388547,1716039042018,-169.125829,0.00016438,2]
[327388548,1716039042027,-500.0,0.00016438,2]
[327388549,1716039042036,-169.125829,0.00016438,2]
[327388550,1716039042045,-151.0,0.00016438,2]
[327388551,1716039042054,-500.0,0.00016438,2]
[327388552,1716039042063,-151.0,0.00016438,2]
[327388553,1716039042073,-171.17528,0.00016438,2]
[327388554,1716039042082,-516.99,0.00016438,2]
[327388555,1716039042091,-516.99,0.00016438,2]
[327388556,1716039042100,-516.99,0.00016438,2]
[327388557,1716039042110,-516.99,0.00016438,2]
[327388558,1716039042119,-516.99,0.00016438,2]
[327388559,1716039042129,-169.125829,0.00016438,2]
[327388560,1716039042139,-169.125829,0.00016438,2]
[327388561,1716039042149,-516.99,0.00016438,2]
[327388562,1716039042159,-169.125829,0.00016438,2]
[327388563,1716039042169,-516.99,0.00016438,2]
[327388564,1716039042178,-169.125829,0.00016438,2]
[327388565,1716039042188,-516.99,0.00016438,2]
[327388566,1716039042199,-500.0,0.00016438,2]
[327388567,1716039042209,-516.99,0.00016438,2]
[327388568,1716039042217,-516.99,0.00016438,2]
[327388569,1716039042226,-516.99,0.00016438,2]
[327388570,1716039042235,-516.99,0.00016438,2]
[327388571,1716039042245,-516.99,0.00016438,2]
[327388572,1716039042254,-516.99,0.00016438,2]
[327388573,1716039042264,-500.0,0.00016438,2]
[327388574,1716039042274,-516.99,0.00016438,2]
[327388575,1716039042284,-516.99,0.00016438,2]
[327388576,1716039042293,-516.99,0.00016438,2]
[327388577,1716039042303,-516.99,0.00016438,2]
[327388578,1716039042312,-516.99,0.00016438,2]
[327388579,1716039042322,-516.99,0.00016438,2]
[327388580,1716039042331,-516.99,0.00016438,2]
[327388581,1716039042341,-516.99,0.00016438,2]
[327388582,1716039042350,-516.99,0.00016438,2]
[327388583,1716039042359,-500.0,0.00016438,2]
[327388584,1716039042373,-517.2,0.00016438,2]
[327388585,1716039042382,-500.0,0.00016438,2]
[327388586,1716039042391,-500.0,0.00016438,2]
[327388587,1716039042401,-500.0,0.00016438,2]
[327388588,1716039042410,-500.0,0.00016438,2]
[327388589,1716039042419,-500.0,0.00016438,2]
[327388590,1716039042429,-500.0,0.00016438,2]
[327388591,1716039042439,-500.0,0.00016438,2]
[327388592,1716039042451,-500.0,0.00016438,2]
[327388593,1716039042460,-301.50876018,0.00016438,2]
[327388594,1716039042469,-500.0,0.00016438,2]
[327388595,1716039042479,-500.0,0.00016438,2]
[327388596,1716039042488,-500.0,0.00016438,2]
[327388597,1716039042498,-151.0,0.00016438,2]
[327388598,1716039042507,-151.0,0.00016438,2]
[327388599,1716039042517,-198.0,0.00016438,2]
[327388601,1716039042604,-500.0,0.00016438,2]
[327388602,1716039042626,-500.0,0.00016438,2]
[327388603,1716039042636,-518.25068416,0.00016438,2]
[327388604,1716039042646,-500.0,0.00016438,2]
[327388605,1716039042655,-500.0,0.00016438,2]
[327388607,1716039042664,-500.0,0.00016438,2]
[327388609,1716039042674,-500.0,0.00016438,2]
[327388611,1716039042682,-500.0,0.00016438,2]
[327388613,1716039042691,-500.0,0.00016438,2]
[327388615,1716039042701,-500.0,0.00016438,2]
[327388616,1716039042710,-500.0,0.00016438,2]
[327388619,1716039042719,-500.0,0.00016438,2]
[327388622,1716039042727,-643.42819546,0.00016438,2]
[327388624,1716039042735,-500.0,0.00016438,2]
[327388627,1716039042743,-326.48227653,0.00016438,2]
[327388629,1716039042752,-500.0,0.00016438,2]
[327388632,1716039042761,-594.47947627,0.00016438,2]
[327388636,1716039042771,-1000.0,0.00016438,2]
[327388639,1716039042780,-500.0,0.00016438,2]
[327388643,1716039042788,-500.0,0.00016438,2]
[327388646,1716039042797,-510.70248398,0.00016438,2]
[327388647,1716039042806,-558.99636393,0.00016438,2]
[327388648,1716039042815,-151.0,0.00016438,2]
[327388649,1716039042824,-157.898362,0.00016438,2]
[327388650,1716039042834,-728.05,0.00016438,2]
[327388651,1716039042843,-151.0,0.00016438,2]
[327388652,1716039042852,-151.0,0.00016438,2]
[327388653,1716039042861,-151.0,0.00016438,2]
[327388654,1716039042870,-151.0,0.00016438,2]
[327388655,1716039042879,-151.0,0.00016438,2]
[327388656,1716039042888,-500.0,0.00016438,2]
[327388657,1716039042898,-500.0,0.00016438,2]
[327388658,1716039042907,-504.3378863,0.00016438,2]
[327388659,1716039042916,-500.0,0.00016438,2]
[327388660,1716039042925,-500.0,0.00016438,2]
[327388661,1716039042934,-151.0,0.00016438,2]
[327388663,1716039042945,-500.0,0.00016438,2]
[327388665,1716039042954,-151.0,0.00016438,2]
[327388666,1716039042963,-500.0,0.00016438,2]
[327388667,1716039042972,-151.0,0.00016438,2]
[327388668,1716039042983,-500.0,0.00016438,2]
[327388669,1716039042992,-151.0,0.00016438,2]
[327388671,1716039043002,-503.82313436,0.00016438,2]
[327388673,1716039043011,-500.0,0.00016438,2]
[327388675,1716039043021,-500.0,0.00016438,2]
[327388677,1716039043031,-502.10841031,0.00016438,2]
[327388679,1716039043040,-500.0,0.00016438,2]
[327388681,1716039043049,-500.0,0.00016438,2]
[327388683,1716039043058,-500.0,0.00016438,2]
[327388685,1716039043067,-511.85063288,0.00016438,2]
[327388687,1716039043076,-500.0,0.00016438,2]
[327388689,1716039043086,-500.0,0.00016438,2]
[327388691,1716039043095,-500.0,0.00016438,2]
[327388693,1716039043104,-500.0,0.00016438,2]
[327388695,1716039043114,-500.0,0.00016438,2]
[327388697,1716039043123,-500.0,0.00016438,2]
[327388699,1716039043132,-290.14951,0.00016438,2]
[327388701,1716039043141,-500.0,0.00016438,2]
[327388703,1716039043151,-500.0,0.00016438,2]
[327388705,1716039043160,-500.0,0.00016438,2]
[327388707,1716039043169,-500.0,0.00016438,2]
[327388709,1716039043178,-500.0,0.00016438,2]
[327388711,1716039043188,-500.0,0.00016438,2]
[327388713,1716039043199,-500.0,0.00016438,2]
[327388715,1716039043209,-500.0,0.00016438,2]
[327388717,1716039043218,-151.0,0.00016438,2]
[327388719,1716039043227,-500.0,0.00016438,2]
[327388721,1716039043235,-151.705536,0.00016438,2]
[327388722,1716039043245,-334.17291968,0.00016438,2]
[327388723,1716039043254,-500.0,0.00016438,2]
[327388724,1716039043264,-502.67880849,0.00016438,2]
[327388725,1716039043273,-500.0,0.00016438,2]
[327388726,1716039043283,-500.0,0.00016438,2]
[327388727,1716039043292,-500.0,0.00016438,2]
[327388728,1716039043301,-500.0,0.00016438,2]
[327388729,1716039043310,-500.0,0.00016438,2]
[327388730,1716039043320,-500.0,0.00016438,2]
[327388732,1716039043329,-500.0,0.00016438,2]
[327388733,1716039043338,-500.0,0.00016438,2]
[327388735,1716039043348,-500.0,0.00016438,2]
[327388736,1716039043358,-500.0,0.00016438,2]
[327388738,1716039043372,-507.2567136,0.00016438,2]
[327388740,1716039043381,-615.5819329,0.00016438,2]
[327388742,1716039043391,-500.0,0.00016438,2]
[327388743,1716039043401,-395.89822196,0.00016438,2]
[327388744,1716039043411,-502.69813627,0.00016438,2]
[327388745,1716039043421,-503.16445002,0.00016438,2]
[327388747,1716039043430,-500.0,0.00016438,2]
[327388748,1716039043439,-325.31449427,0.00016438,2]
[327388749,1716039043451,-502.91493688,0.00016438,2]
[327388750,1716039043461,-501.46998733,0.00016438,2]
[327388751,1716039043470,-500.0,0.00016438,2]
[327388752,1716039043480,-504.53150209,0.00016438,2]
[327388753,1716039043490,-442.77818807,0.00016438,2]
[327388754,1716039043499,-500.0,0.00016438,2]
[327388755,1716039043508,-500.0,0.00016438,2]
[327388756,1716039043518,-500.0,0.00016438,2]
[327388757,1716039043528,-500.0,0.00016438,2]
[327388758,1716039043538,-500.0,0.00016438,2]
[327388759,1716039043547,-500.0,0.00016438,2]
[327388760,1716039043556,-500.0,0.00016438,2]
[327388761,1716039043566,-500.0,0.00016438,2]
[327388762,1716039043576,-503.53075534,0.00016438,2]
[327388763,1716039043585,-500.0,0.00016438,2]
[327388764,1716039043595,-500.0,0.00016438,2]
[327388765,1716039043604,-470.733284,0.00016438,2]
[327388766,1716039043614,-470.733284,0.00016438,2]
[327388767,1716039043624,-470.733284,0.00016438,2]